bitfinex/quotes_SOLUSD_20251124
["timestamp","ask_amount","ask_price","bid_price","bid_amount"]
[1763992890898,21.30701511,129.84,129.77,16.638864]
[1763992891096,0.72,129.83,129.78,3.4]
[1763992891269,4.27815111,129.81,129.77,3.4]
[1763992891798,0.72,129.8,129.77,3.4]
[1763992892098,0.72,129.83,129.78,4.60815111]
[1763992892291,0.72,129.82,129.78,4.60815111]
[1763992892491,0.72,129.82,129.78,4.27815111]
[1763992892815,0.72,129.82,129.78,0.33]
[1763992892965,4.27815111,129.83,129.78,4.60815111]
[1763992893164,0.72,129.82,129.78,4.60815111]
[1763992893596,0.72,129.82,129.78,12.31330898]
[1763992894775,4.99815111,129.84,129.79,14.3969788]
[1763992895092,0.72,129.83,129.8,3.4]
[1763992895394,0.72,129.83,129.79,108.6737505]
[1763992895395,4.27815111,129.82,129.79,94.2767717]
[1763992895693,4.27815111,129.82,129.79,97.6767717]
[1763992895872,0.72,129.81,129.79,97.6767717]
[1763992896072,0.72,129.81,129.79,3.4]
[1763992898179,16.308864,129.86,129.79,3.4]
[1763992898381,4.95815111,129.84,129.79,109.65963728]
[1763992898691,0.68,129.86,129.82,4.27815111]
[1763992898880,0.68,129.86,129.83,3.4]
[1763992899598,0.68,129.86,129.83,7.67815111]
[1763992899895,0.68,129.88,129.83,8.00815111]
[1763992900100,0.68,129.87,129.84,4.27815111]
[1763992900284,0.68,129.89,129.85,4.27815111]
[1763992900485,0.68,129.89,129.86,3.4]
[1763992901297,0.68,129.89,129.86,7.67815111]
[1763992901688,0.68,129.89,129.86,15.37864658]
[1763992902498,0.68,129.89,129.86,11.10049547]
[1763992902686,0.68,129.89,129.86,15.37864658]
[1763992903203,0.68,129.89,129.86,3.4]
[1763992903376,0.68,129.89,129.86,7.67815111]
[1763992904285,0.68,129.89,129.86,3.4]
[1763992904493,0.68,129.89,129.87,3.4]
[1763992905378,0.68,129.89,129.85,106.58595718]
[1763992905602,0.68,129.89,129.86,3.4]
[1763992905803,0.68,129.9,129.86,8.00815111]
[1763992906578,0.68,129.9,129.86,3.73]
[1763992906811,4.95815111,129.9,129.86,3.73]
[1763992907192,0.68,129.9,129.86,3.73]
[1763992907385,0.68,129.89,129.86,3.4]
[1763992907781,4.95815111,129.89,129.86,3.4]
[1763992908309,4.95815111,129.88,129.86,3.4]
[1763992908906,0.68,129.88,129.86,3.4]
[1763992909508,4.95815111,129.88,129.86,3.4]
[1763992910613,16.308864,129.9,129.86,3.4]
[1763992910614,0.68,129.87,129.86,3.4]
[1763992910814,4.95815111,129.89,129.86,3.4]
[1763992910986,0.68,129.88,129.86,2.68]
[1763992911187,4.27815111,129.87,129.82,114.6956357]
[1763992911391,4.27815111,129.87,129.83,0.71]
[1763992911693,0.68,129.88,129.84,3.4]
[1763992911911,4.95815111,129.88,129.84,3.4]
[1763992912106,4.95815111,129.88,129.85,0.71]
[1763992912305,4.95815111,129.88,129.84,97.6767717]
[1763992912487,4.97815111,129.87,129.84,98.3867717]
[1763992913200,4.27815111,129.87,129.84,98.3867717]
[1763992914491,4.98815111,129.87,129.84,98.3867717]
[1763992914714,4.27815111,129.87,129.84,98.3867717]
[1763992915100,4.98815111,129.88,129.84,98.3867717]
[1763992915818,0.71,129.87,129.85,3.4]
[1763992917215,0.71,129.87,129.84,94.9867717]
[1763992917404,4.98815111,129.87,129.85,3.4]
[1763992918030,0.71,129.86,129.85,3.4]
[1763992918220,4.98815111,129.87,129.85,3.4]
[1763992918416,4.27815111,129.87,129.84,94.2767717]
[1763992918617,20.58701511,129.9,129.82,110.5856357]
[1763992918618,0.71,129.86,129.82,110.5856357]
[1763992918795,4.27815111,129.83,129.81,94.2767717]
[1763992918998,0.71,129.86,129.81,94.2767717]
[1763992919303,4.27815111,129.84,129.81,94.9567717]
[1763992920914,0.71,129.85,129.82,3.42]
[1763992921126,4.98815111,129.84,129.82,3.42]
[1763992921495,4.98815111,129.84,129.77,0.68]
[1763992921496,4.98815111,129.83,129.77,0.68]
[1763992921695,4.27815111,129.79,129.75,0.1]
[1763992921919,17.018864,129.82,129.75,0.1]
[1763992922223,4.27815111,129.76,129.75,0.1]
[1763992922598,4.98815111,129.76,129.75,0.1]
[1763992923542,21.29701511,129.76,129.65,11.82621688]
[1763992923705,0.71,129.75,129.69,4.27815111]
[1763992924029,4.27815111,129.74,129.7,0.68]
[1763992924521,0.71,129.74,129.7,0.68]
[1763992924706,4.27815111,129.75,129.7,4.95815111]
[1763992925041,4.98815111,129.75,129.7,4.95815111]
[1763992925345,4.98815111,129.74,129.7,9.78882769]
[1763992925499,4.98815111,129.74,129.71,0.68]
[1763992926006,4.27815111,129.75,129.71,0.68]
[1763992926215,4.27815111,129.75,129.7,13.20882769]
[1763992926216,4.27815111,129.74,129.7,13.20882769]
[1763992926542,4.98815111,129.74,129.7,0.68]
[1763992926834,4.98815111,129.73,129.69,13.20882769]
[1763992927125,0.71,129.73,129.7,0.68]
[1763992927828,4.27815111,129.71,129.68,3.42]
[1763992928015,4.27815111,129.71,129.67,4.2]
[1763992928222,4.98815111,129.71,129.67,4.2]
[1763992928523,4.27815111,129.69,129.67,0.1]
[1763992928931,0.71,129.7,129.67,0.1]
[1763992929103,4.98815111,129.7,129.67,0.1]
[1763992929603,4.98815111,129.69,129.67,0.1]
[1763992930131,4.98815111,129.68,129.67,0.1]
[1763992930312,0.71,129.68,129.67,0.1]
[1763992930512,4.98815111,129.69,129.67,0.1]
[1763992930911,16.308864,129.71,129.67,0.1]
[1763992930912,4.98815111,129.71,129.67,0.78]
[1763992931710,4.27815111,129.72,129.67,0.78]
[1763992931912,4.98815111,129.72,129.67,0.78]
[1763992932116,4.27815111,129.7,129.67,0.1]
[1763992932426,4.27815111,129.69,129.67,0.1]
[1763992932729,2.74629972,129.69,129.67,0.1]
[1763992933069,20.34055481,129.74,129.68,10.46882769]
[1763992933070,4.74169081,129.74,129.68,10.46882769]
[1763992933212,0.71,129.73,129.68,13.21512741]
[1763992933543,3.45629972,129.73,129.69,0.68]
[1763992933947,2.74629972,129.74,129.69,4.1]
[1763992934433,3.45629972,129.73,129.69,4.1]
[1763992934605,2.74629972,129.73,129.69,4.1]
[1763992934806,2.74629972,129.73,129.7,0.68]
[1763992935014,3.45629972,129.73,129.68,15.95512741]
[1763992935215,0.71,129.73,129.69,0.68]
[1763992935444,3.45629972,129.73,129.69,0.68]
[1763992936114,3.45629972,129.73,129.69,23.8]
[1763992936316,2.74629972,129.71,129.68,9.78882769]
[1763992936537,0.71,129.72,129.67,0.1]
[1763992936538,2.74629972,129.7,129.67,0.1]
[1763992936931,2.74629972,129.68,129.67,0.1]
[1763992937437,0.71,129.68,129.67,0.1]
[1763992937625,3.45629972,129.68,129.67,0.1]
[1763992942254,0.71,129.68,129.67,0.1]
[1763992942556,19.90732529,129.68,129.67,0.1]
[1763992943333,24.37248786,129.68,129.67,0.1]
[1763992943655,0.14216157,129.66,129.65,0.1]
[1763992943831,17.29366017,129.66,129.65,0.1]
[1763992944030,27.78248786,129.66,129.65,0.1]
[1763992944440,16.308864,129.63,129.56,4.01903477]
[1763992944677,16.308864,129.63,129.53,0.72]
[1763992944678,10.98519888,129.6,129.53,0.72]
[1763992944969,4.26216157,129.62,129.53,0.72]
[1763992945143,2.74629972,129.57,129.53,0.72]
[1763992946075,3.44629972,129.57,129.53,0.72]
[1763992946367,3.44629972,129.57,129.51,9.78882769]
[1763992946368,3.44629972,129.56,129.51,3.46629972]
[1763992946575,0.7,129.59,129.52,0.72]
[1763992946774,0.7,129.59,129.53,7.64367077]
[1763992946996,19.87102557,129.62,129.55,7.64367077]
[1763992946997,3.42,129.62,129.55,7.64367077]
[1763992947163,0.7,129.61,129.55,9.78882769]
[1763992947476,7.64367077,129.59,129.56,0.72]
[1763992947875,7.64367077,129.6,129.56,0.72]
[1763992948094,7.64367077,129.57,129.54,119.128864]
[1763992948258,8.34367077,129.59,129.54,126.77253477]
[1763992948454,0.7,129.59,129.55,0.72]
[1763992948653,19.728864,129.62,129.55,8.36367077]
[1763992948654,7.64367077,129.6,129.55,8.36367077]
[1763992948976,8.34367077,129.6,129.56,0.72]
[1763992949154,7.64367077,129.59,129.56,0.72]
[1763992949467,7.64367077,129.58,129.54,102.82]
[1763992949669,8.34367077,129.58,129.54,0.72]
[1763992949857,7.64367077,129.58,129.55,0.72]
[1763992950046,8.34367077,129.58,129.55,0.72]
[1763992950246,3.42,129.62,129.55,0.72]
[1763992950446,7.64367077,129.6,129.55,8.36367077]
[1763992950847,8.34367077,129.6,129.56,0.72]
[1763992951072,7.64367077,129.6,129.56,0.72]
[1763992951372,7.64367077,129.61,129.56,0.72]
[1763992951563,7.64367077,129.61,129.56,8.36367077]
[1763992951875,7.64367077,129.61,129.56,16.08205257]
[1763992952064,7.64367077,129.61,129.57,0.72]
[1763992952391,0.7,129.62,129.57,8.36367077]
[1763992952561,7.64367077,129.63,129.57,8.36367077]
[1763992952750,7.64367077,129.62,129.58,0.72]
[1763992952948,7.64367077,129.63,129.58,0.72]
[1763992953257,0.7,129.64,129.58,8.36367077]
[1763992953459,7.64367077,129.64,129.58,8.36367077]
[1763992953757,7.64367077,129.64,129.59,8.43651732]
[1763992953951,7.64367077,129.64,129.59,7.71651732]
[1763992954148,7.64367077,129.64,129.6,0.72]
[1763992954378,8.34367077,129.64,129.6,0.72]
[1763992954691,7.64367077,129.63,129.6,0.72]
[1763992956097,16.308864,129.65,129.6,8.43588974]
[1763992956098,7.64367077,129.65,129.6,8.43588974]
[1763992956395,7.64367077,129.65,129.6,8.36367077]
[1763992956580,7.64367077,129.65,129.61,0.72]
[1763992957306,0.7,129.66,129.57,9.78882769]
[1763992957307,0.7,129.64,129.57,9.78882769]
[1763992957600,7.64367077,129.63,129.59,9.78882769]
[1763992957758,8.34367077,129.64,129.59,9.78882769]
[1763992957959,8.34367077,129.64,129.6,0.72]
[1763992958892,5.05502281,129.67,129.61,7.64367077]
[1763992959083,7.64367077,129.66,129.61,9.78882769]
[1763992959399,12.69869358,129.66,129.62,0.72]
[1763992959608,7.64367077,129.65,129.62,0.72]
[1763992959882,13.39869358,129.65,129.62,0.72]
[1763992960057,16.308864,129.68,129.62,0.72]
[1763992960262,5.76083025,129.67,129.62,0.72]
[1763992960453,7.64367077,129.65,129.62,0.72]
[1763992960657,12.70450102,129.65,129.62,0.72]
[1763992961253,7.64367077,129.64,129.62,0.72]
[1763992961457,12.71482806,129.64,129.62,0.72]
[1763992962080,8.34367077,129.63,129.59,0.72]
[1763992962296,0.7,129.63,129.59,0.72]
[1763992962459,0.7,129.63,129.55,0.72]
[1763992962460,7.64367077,129.6,129.55,0.72]
[1763992962662,7.64367077,129.59,129.55,8.43902008]
[1763992963163,7.64367077,129.59,129.56,0.72]
[1763992963968,7.64367077,129.6,129.56,0.72]
[1763992964683,5.08983293,129.59,129.56,0.72]
[1763992964864,7.64367077,129.6,129.56,0.72]
[1763992965066,5.09146933,129.59,129.56,8.4383921]
[1763992965265,7.64367077,129.6,129.56,8.4383921]
[1763992965479,7.64367077,129.6,129.57,0.72]
[1763992965877,7.64367077,129.62,129.57,0.72]
[1763992966081,5.09053528,129.61,129.57,8.36367077]
[1763992966401,8.34367077,129.63,129.58,8.36367077]
[1763992966557,5.0962602,129.62,129.58,16.0809027]
[1763992966764,14.66541306,129.65,129.6,7.64367077]
[1763992966990,5.09677963,129.64,129.61,7.64367077]
[1763992967176,5.09677963,129.63,129.61,7.64367077]
[1763992967476,13.94541306,129.66,129.62,0.69]
[1763992967685,5.10026894,129.65,129.62,8.33367077]
[1763992967902,8.36367077,129.67,129.63,7.64367077]
[1763992967903,5.10026894,129.64,129.63,7.64367077]
[1763992968188,5.10026894,129.64,129.63,0.69]
[1763992969262,5.10026894,129.64,129.63,16.04793444]
[1763992969595,7.02174229,129.68,129.63,16.04793444]
[1763992969770,5.10725077,129.67,129.64,0.69]
[1763992970092,5.10725077,129.66,129.64,0.69]
[1763992970273,5.10725077,129.65,129.64,8.33367077]
[1763992971477,5.10725077,129.65,129.62,10.47882769]
[1763992971681,8.36367077,129.67,129.63,0.69]
[1763992971888,5.11204746,129.66,129.63,0.69]
[1763992972187,5.11204746,129.65,129.63,0.69]
[1763992972494,8.36367077,129.67,129.63,0.69]
[1763992972686,5.11431723,129.66,129.63,0.69]
[1763992972864,5.11431723,129.65,129.63,0.69]
[1763992973065,5.11431723,129.64,129.63,0.69]
[1763992973284,8.36367077,129.67,129.63,0.69]
[1763992973484,5.11630117,129.66,129.63,0.69]
[1763992973685,5.11630117,129.65,129.63,0.69]
[1763992973893,8.32367077,129.66,129.62,0.67]
[1763992974076,5.11596993,129.65,129.62,4.11]
[1763992974279,5.11596993,129.64,129.62,106.21]
[1763992974488,6.30174229,129.67,129.63,0.67]
[1763992974682,5.11761616,129.66,129.63,0.67]
[1763992974885,5.11761616,129.65,129.63,0.67]
[1763992975189,8.32367077,129.67,129.63,0.67]
[1763992975372,5.80126201,129.66,129.63,0.67]
[1763992975568,5.12126201,129.65,129.63,0.67]
[1763992975795,8.32367077,129.67,129.63,0.67]
[1763992975995,5.12116365,129.66,129.63,0.67]
[1763992976198,5.12116365,129.65,129.62,105.54]
[1763992976386,5.12246867,129.64,129.63,0.67]
[1763992976569,0.68,129.66,129.63,0.67]
[1763992976777,5.12195077,129.65,129.62,102.1]
[1763992977085,8.32367077,129.66,129.62,102.1]
[1763992977294,5.80137638,129.65,129.62,102.1]
[1763992977483,0.68,129.65,129.62,102.1]
[1763992978192,5.8021916,129.65,129.62,102.1]
[1763992978379,0.68,129.65,129.62,102.1]
[1763992979502,7.64367077,129.66,129.62,109.74367077]
[1763992979706,5.12889821,129.65,129.63,8.31367077]
[1763992979892,12.77302414,129.68,129.63,8.31367077]
[1763992980094,5.12935337,129.67,129.63,0.67]
[1763992980403,5.12935337,129.67,129.62,7.71466968]
[1763992980404,5.12935337,129.66,129.64,0.67]
[1763992980585,8.32367077,129.68,129.64,0.67]
[1763992980786,5.13332805,129.67,129.64,0.67]
[1763992980987,5.13332805,129.66,129.64,0.67]
[1763992981202,8.32367077,129.67,129.62,8.31367077]
[1763992981411,5.13745133,129.66,129.62,11.75367077]
[1763992981700,0.68,129.66,129.63,0.67]
[1763992982110,0.68,129.67,129.63,0.67]
[1763992982302,0.68,129.66,129.63,0.67]
[1763992982493,0.68,129.66,129.62,3.44]
[1763992982494,8.32367077,129.66,129.62,3.44]
[1763992982810,0.68,129.66,129.62,8.31367077]
[1763992983011,0.68,129.66,129.63,0.67]
[1763992983205,8.32367077,129.66,129.62,7.64367077]
[1763992983409,8.32367077,129.66,129.63,0.67]
[1763992983595,16.308864,129.69,129.63,8.31367077]
[1763992983788,8.32367077,129.68,129.63,8.31367077]
[1763992983988,8.32367077,129.68,129.64,0.67]
[1763992984219,0.68,129.67,129.64,0.67]
[1763992984415,0.68,129.67,129.63,8.31367077]
[1763992984916,8.32367077,129.69,129.64,8.31367077]
[1763992985304,8.32367077,129.68,129.64,0.67]
[1763992985807,7.64367077,129.68,129.64,0.67]
[1763992985994,8.32367077,129.68,129.64,0.67]
[1763992987412,0.68,129.67,129.64,0.67]
[1763992987589,0.68,129.67,129.64,8.31367077]
[1763992987789,8.32367077,129.68,129.64,8.31367077]
[1763992988511,0.68,129.68,129.64,0.67]
[1763992988705,3.42669444,129.68,129.64,3.41669444]
[1763992989013,0.68,129.68,129.64,3.41669444]
[1763992989518,3.42669444,129.68,129.64,3.41669444]
[1763992989816,2.74669444,129.65,129.6,13.20552213]
[1763992990113,0.68,129.65,129.61,6.85669444]
[1763992990581,0.68,129.69,129.64,2.74669444]
[1763992990782,0.68,129.71,129.66,2.74669444]
[1763992990999,3.42669444,129.7,129.66,2.74669444]
[1763992991420,0.68,129.69,129.66,2.74669444]
[1763992991589,0.68,129.7,129.66,2.74669444]
[1763992991900,3.42669444,129.7,129.66,3.41669444]
[1763992992614,4.97033288,129.7,129.66,4.96033288]
[1763992992819,16.308864,129.71,129.67,4.96033288]
[1763992993201,16.308864,129.71,129.66,4.29033288]
[1763992993202,0.68,129.7,129.66,4.29033288]
[1763992993514,4.97033288,129.7,129.66,4.96033288]
[1763992993701,4.97033288,129.7,129.66,4.29033288]
[1763992993904,4.97033288,129.7,129.67,0.67]
[1763992994303,0.68,129.7,129.67,0.67]
[1763992994507,4.29033288,129.68,129.63,0.67]
[1763992994709,4.29033288,129.68,129.64,0.67]
[1763992994892,4.97033288,129.68,129.64,0.67]
[1763992996713,4.29033288,129.66,129.61,4.96033288]
[1763992997096,0.68,129.65,129.61,4.96033288]
[1763992998119,4.97033288,129.65,129.61,0.67]
[1763992998300,0.68,129.65,129.62,0.67]
[1763992999316,4.97033288,129.66,129.62,0.67]
[1763992999523,4.97033288,129.65,129.62,0.67]
[1763992999914,0.68,129.65,129.62,0.67]
[1763993000235,4.29033288,129.67,129.62,16.11511695]
[1763993000715,4.97033288,129.67,129.63,0.67]
[1763993001117,4.29033288,129.65,129.61,0.67]
[1763993001498,4.97033288,129.65,129.61,0.67]
[1763993002730,0.68,129.65,129.61,4.96033288]
[1763993003518,0.68,129.65,129.61,4.29033288]
[1763993003827,0.68,129.65,129.62,0.71]
[1763993005323,0.68,129.65,129.61,4.29033288]
[1763993005530,0.68,129.65,129.62,0.71]
[1763993006312,0.68,129.65,129.61,12.71566327]
[1763993007139,0.68,129.65,129.61,5.00033288]
[1763993007325,0.68,129.65,129.61,0.71]
[1763993007509,0.68,129.65,129.61,5.00033288]
[1763993008611,4.97033288,129.65,129.61,5.00033288]
[1763993008812,4.97033288,129.65,129.61,12.71568374]
[1763993009011,4.97033288,129.65,129.62,0.71]
[1763993009341,0.68,129.65,129.62,0.71]
[1763993009710,5.00033288,129.66,129.62,5.00033288]
[1763993009949,0.71,129.68,129.62,5.00033288]
[1763993010119,5.00033288,129.68,129.63,5.00033288]
[1763993010439,5.00033288,129.68,129.63,16.15450537]
[1763993010614,0.71,129.67,129.64,0.71]
[1763993011205,5.00033288,129.67,129.64,0.71]
[1763993011409,0.71,129.67,129.64,0.71]
[1763993011713,5.85421634,129.67,129.64,0.71]
[1763993012315,0.71,129.67,129.64,0.71]
[1763993012833,5.14421634,129.68,129.64,0.71]
[1763993013147,0.71,129.68,129.64,5.00033288]
[1763993013324,0.71,129.68,129.64,12.71391511]
[1763993013524,5.00033288,129.69,129.65,0.71]
[1763993014237,5.00033288,129.68,129.64,3.44]
[1763993014542,0.71,129.67,129.64,3.44]
[1763993015334,4.29033288,129.68,129.64,4.15]
[1763993015540,5.85325664,129.68,129.64,8.44033288]
[1763993015711,5.00033288,129.68,129.64,8.44033288]
[1763993016110,0.71,129.68,129.64,5.00033288]
[1763993016333,0.71,129.7,129.65,5.00033288]
[1763993016545,9.43358952,129.69,129.65,8.4229288]
[1763993016917,10.14358952,129.69,129.65,8.4229288]
[1763993017224,5.00033288,129.69,129.65,8.4229288]
[1763993017430,5.00033288,129.69,129.66,0.71]
[1763993017822,5.85370091,129.69,129.66,0.71]
[1763993018027,9.43403379,129.7,129.66,5.00033288]
[1763993018249,5.14370091,129.7,129.67,4.29033288]
[1763993018547,5.14370091,129.71,129.67,5.00033288]
[1763993018715,5.14370091,129.71,129.68,5.00033288]
[1763993018913,5.00033288,129.73,129.68,5.00033288]
[1763993019245,5.00033288,129.73,129.69,0.71]
[1763993019449,5.00033288,129.73,129.69,5.00033288]
[1763993020026,4.29033288,129.73,129.69,4.29033288]
[1763993020225,4.29033288,129.73,129.7,0.71]
[1763993020548,5.00033288,129.73,129.68,22.50037818]
[1763993020750,5.00033288,129.73,129.69,4.29033288]
[1763993020751,0.71,129.73,129.69,4.29033288]
[1763993020949,4.29033288,129.74,129.7,4.29033288]
[1763993021255,4.29033288,129.74,129.7,5.00033288]
[1763993021428,5.00033288,129.74,129.7,5.00033288]
[1763993021633,0.71,129.74,129.71,0.71]
[1763993022338,4.29033288,129.73,129.7,3.44]
[1763993022658,4.29033288,129.73,129.7,4.15]
[1763993022843,0.71,129.73,129.7,4.15]
[1763993023048,0.71,129.75,129.72,4.29033288]
[1763993023366,19.748864,129.77,129.71,0.71]
[1763993023367,4.29033288,129.76,129.71,5.00033288]
[1763993023522,5.00033288,129.76,129.71,5.00033288]
[1763993023726,5.00033288,129.76,129.72,0.71]
[1763993024143,4.29033288,129.76,129.72,0.71]
[1763993024340,5.00033288,129.76,129.72,0.71]
[1763993024656,0.71,129.76,129.72,5.00033288]
[1763993024866,24.03919688,129.77,129.73,4.29033288]
[1763993025164,5.00033288,129.77,129.73,0.71]
[1763993025526,4.49033288,129.78,129.73,5.00033288]
[1763993025869,0.2,129.78,129.75,4.29033288]
[1763993026362,0.87,129.78,129.73,7.73033288]
[1763993026565,0.87,129.78,129.74,4.94033288]
[1763993026755,0.87,129.78,129.73,3.44]
[1763993026756,0.2,129.78,129.75,4.94033288]
[1763993027663,0.2,129.78,129.75,4.29033288]
[1763993027867,0.2,129.78,129.77,4.29033288]
[1763993028374,0.2,129.78,129.77,4.94033288]
[1763993028533,0.2,129.78,129.77,12.64627416]
[1763993028733,0.2,129.78,129.77,12.99546618]
[1763993029049,0.2,129.78,129.77,26.20429387]
[1763993029566,0.2,129.78,129.77,18.49835259]
[1763993030874,0.2,129.78,129.77,26.20429387]
[1763993031053,0.87,129.78,129.74,0.65]
[1763993031252,5.5095249,129.78,129.75,9.78882769]
[1763993031592,0.2,129.78,129.77,9.78882769]
[1763993031750,0.2,129.78,129.77,14.42835259]
[1763993031966,0.2,129.78,129.77,15.07835259]
[1763993032165,0.2,129.78,129.77,9.78882769]
[1763993032341,0.2,129.78,129.75,0.65]
[1763993032342,0.87,129.78,129.75,9.78882769]
[1763993032661,0.87,129.78,129.75,10.47882769]
[1763993032867,0.2,129.78,129.75,14.42835259]
[1763993033052,0.2,129.78,129.76,0.69]
[1763993033237,0.2,129.78,129.75,15.11835259]
[1763993033441,0.2,129.78,129.75,22.82540633]
[1763993034067,0.2,129.78,129.75,15.11835259]
[1763993034249,0.2,129.78,129.75,22.82539321]
[1763993034672,0.2,129.78,129.75,15.11835259]
[1763993035369,0.2,129.78,129.75,10.47882769]
[1763993035576,0.2,129.78,129.76,0.69]
[1763993036056,0.2,129.78,129.77,13.20882769]
[1763993036255,0.2,129.78,129.77,13.89882769]
[1763993036570,0.89,129.78,129.65,51.99999999]
[1763993036869,4.6395249,129.75,129.72,9.78882769]
[1763993037076,0.69,129.77,129.72,13.20882769]
[1763993037259,4.6395249,129.76,129.72,13.20882769]
[1763993037459,4.6395249,129.76,129.72,13.89882769]
[1763993037658,5.3295249,129.76,129.72,13.89882769]
[1763993039278,4.6395249,129.75,129.71,9.78882769]
[1763993039449,4.6395249,129.72,129.69,9.78882769]
[1763993039649,16.998864,129.75,129.69,9.78882769]
[1763993039650,4.6395249,129.71,129.69,9.78882769]
[1763993040051,5.3295249,129.71,129.69,9.78882769]
[1763993040457,0.69,129.71,129.69,9.78882769]
[1763993040846,4.6395249,129.7,129.66,0.69]
[1763993041043,16.308864,129.72,129.67,18.53835259]
[1763993041379,4.6395249,129.7,129.68,3.42]
[1763993041677,0.69,129.74,129.68,3.42]
[1763993041879,4.6395249,129.72,129.68,3.42]
[1763993042180,4.6395249,129.69,129.6,0.69]
[1763993042350,4.6395249,129.68,129.63,4.11]
[1763993042549,4.6395249,129.68,129.64,3.44]
[1763993042753,0.69,129.68,129.65,9.78882769]
[1763993043962,0.69,129.68,129.66,3.44]
[1763993044165,5.3295249,129.68,129.66,3.44]
[1763993044881,0.69,129.68,129.66,3.44]
[1763993045182,5.3295249,129.68,129.67,3.44]
[1763993046173,5.3295249,129.68,129.65,9.78882769]
[1763993046377,5.3295249,129.68,129.66,3.44]
[1763993046679,5.3295249,129.68,129.67,3.44]
[1763993046879,0.69,129.68,129.67,3.44]
[1763993048374,0.69,129.68,129.58,40.58428728]
[1763993048375,16.308864,129.65,129.58,4.6395249]
[1763993048580,4.6395249,129.64,129.59,4.13]
[1763993048764,0.69,129.64,129.6,4.6395249]
[1763993048966,0.69,129.64,129.61,9.78882769]
[1763993049279,0.69,129.64,129.62,3.44]
[1763993054464,3.66728021,129.64,129.62,3.44]
[1763993056373,0.69,129.64,129.62,3.44]
[1763993057015,16.308864,129.67,129.63,9.78882769]
[1763993057196,3.66728021,129.68,129.63,10.47882769]
[1763993057485,2.97728021,129.7,129.65,9.78882769]
[1763993057658,2.97728021,129.7,129.66,3.44]
[1763993057856,3.66728021,129.7,129.66,4.13]
[1763993058057,2.97728021,129.7,129.66,4.13]
[1763993058289,3.66728021,129.69,129.65,10.47882769]
[1763993058462,3.66728021,129.69,129.66,3.44]
[1763993058463,2.97728021,129.68,129.66,3.44]
[1763993058666,0.69,129.68,129.66,3.44]
[1763993059594,19.47614421,129.71,129.67,10.47882769]
[1763993059997,0.69,129.7,129.67,10.47882769]
[1763993060462,4.03185986,129.75,129.67,10.47882769]
[1763993060664,2.97728021,129.71,129.67,10.47882769]
[1763993061069,0.69,129.7,129.67,10.47882769]
[1763993061884,2.97728021,129.71,129.67,10.47882769]
[1763993062091,3.66728021,129.71,129.67,10.47882769]
[1763993062291,0.69,129.7,129.67,10.47882769]
[1763993062597,0.68,129.7,129.67,17.5006999]
[1763993062782,19.96614421,129.72,129.68,0.71]
[1763993063081,0.68,129.71,129.69,3.44]
[1763993064911,0.68,129.71,129.67,18.2106999]
[1763993065073,3.65728021,129.71,129.68,3.44]
[1763993065693,0.68,129.7,129.68,3.44]
[1763993066010,3.65728021,129.7,129.69,3.44]
[1763993066171,0.68,129.7,129.69,3.44]
[1763993066598,3.65728021,129.7,129.69,3.44]
[1763993067105,3.65728021,129.7,129.66,0.71]
[1763993067310,0.68,129.69,129.67,3.44]
[1763993068700,0.68,129.69,129.66,0.71]
[1763993068905,3.65728021,129.69,129.68,3.44]
[1763993069282,0.68,129.69,129.68,3.44]
[1763993070605,0.68,129.69,129.66,0.71]
[1763993070775,0.68,129.69,129.68,3.44]
[1763993072415,0.68,129.69,129.64,102.1]
[1763993072582,0.68,129.69,129.65,3.44]